[Event "Turkish Second League 2019"]
[Site "Konya"]
[Date "2019.07.23"]
[Round "3"]
[White "Keskinler, Ela"]
[Black "Gunes, Deren"]
[Result "1/2-1/2"]
[ECO "E01"]
[WhiteElo "1221"]
[BlackElo "1266"]
[Annotator "NA"]
[PlyCount "61"]
[EventDate "2019.07.22"]
[EventType "team-tourn"]
[EventCountry "TUR"]
[SourceTitle "playchess.com"]
[Source "ChessBase"]
[SourceQuality "1"]
[TimeControl "5400+30"]

1. Nf3 {[%emt 0:00:30]} d5 {[%emt 0:00:30]} 2. d4 {[%emt 0:00:30]} Nf6 {[%emt 0:00:30]} 3. g3 {[%emt 0:00:30]} c5 {[%emt 0:00:00]} 4. Bg2 {[%emt 0:02:30]} Nc6 {[%emt 0:00:00]} 5. O-O {[%emt 0:01:30]} e6 {[%emt 0:00:30]} 6. c4 {[%emt 0:02:30]} Be7 {[%emt 0:08:30]} 7. e3 {[%emt 0:03:30]} O-O {[%emt 0:01:30]} 8. Qe2 {[%emt 0:05:30]} cxd4 {[%emt 0:01:30]} 9. exd4 {[%emt 0:01:30]} dxc4 {[%emt 0:07:30]} 10. Qxc4 {[%emt 0:03:30]} Nd5 {[%emt 0:01:30]} 11. Nc3 {[%emt 0:03:30]} Nb6 {[%emt 0:03:30]} 12. Qd3 {[%emt 0:05:30]} Qd7 {[%emt 0:05:30]} 13. Rd1 {[%emt 0:01:30]} Rd8 {[%emt 0:06:30]} 14. Be3 {[%emt 0:05:30]} Bf6 {[%emt 0:04:30]} 15. Rac1 {[%emt 0:04:30]} Nb4 {[%emt 0:05:30]} 16. Qe2 {[%emt 0:02:30]} N6d5 {[%emt 0:06:30]} 17. a3 {[%emt 0:03:30]} Nxc3 {[%emt 0:02:30]} 18. bxc3 {[%emt 0:08:30]} Nd5 {[%emt 0:00:30]} 19. c4 {[%emt 0:01:30]} Ne7 {[%emt 0:02:30]} 20. Ne5 {[%emt 0:06:30]} Qe8 {[%emt 0:03:30]} 21. Rb1 {[%emt 0:03:30]} Nc6 {[%emt 0:02:30]} 22. Nxc6 {[%emt 0:01:30]} bxc6 {[%emt 0:00:30]} 23. d5 {[%emt 0:00:30]} exd5 {[%emt 0:03:30]} 24. cxd5 {[%emt 0:00:00]} Bf5 {[%emt 0:01:30]} 25. Rbc1 {[%emt 0:03:00]} cxd5 {[%emt 0:01:30]} 26. Bxd5 {[%emt 0:00:30]} Rac8 {[%emt 0:01:30]} 27. Qf3 {[%emt 0:02:30]} Bg6 {[%emt 0:05:30]} 28. h4 {[%emt 0:01:30]} Rxc1 {[%emt 0:03:30]} 29. Rxc1 {[%emt 0:01:30]} Qe5 {[%emt 0:02:21]} 30. Bc6 {[%emt 0:06:15]} a6 {[%emt 0:03:51]} 31. Qd1 {[%emt 0:07:35]} 1/2-1/2

[Event "Turkish Second League 2019"]
[Site "Konya"]
[Date "2019.07.24"]
[Round "4"]
[White "Baltag, Iulian"]
[Black "Yilmazyerli, Mert"]
[Result "1/2-1/2"]
[ECO "C40"]
[WhiteElo "2398"]
[BlackElo "2420"]
[Annotator "NA"]
[PlyCount "99"]
[EventDate "2019.07.22"]
[EventType "team-tourn"]
[EventCountry "TUR"]
[SourceTitle "playchess.com"]
[Source "ChessBase"]
[SourceQuality "1"]
[TimeControl "5400+30"]

1. e4 {[%emt 0:00:30]} e5 {[%emt 0:01:30]} 2. Nf3 {[%emt 0:00:30]} Qe7 {[%emt 0:00:30]} 3. Bc4 {[%emt 0:01:30]} d6 {[%emt 0:01:30]} 4. O-O {[%emt 0:01:30]} h6 {[%emt 0:02:30]} 5. d4 {[%emt 0:00:30]} Nf6 {[%emt 0:00:30]} 6. Nc3 {[%emt 0:00:30]} c6 {[%emt 0:00:00]} 7. a4 {[%emt 0:00:30]} Bg4 {[%emt 0:04:00]} 8. d5 {[%emt 0:00:30]} Qc7 {[%emt 0:03:30]} 9. Qd3 {[%emt 0:02:30]} Nbd7 {[%emt 0:01:30]} 10. h3 {[%emt 0:00:30]} Bh5 {[%emt 0:04:30]} 11. Nh4 {[%emt 0:00:30]} c5 {[%emt 0:14:30]} 12. a5 {[%emt 0:04:30]} a6 {[%emt 0:01:30]} 13. Ne2 {[%emt 0:01:30]} Bxe2 {[%emt 0:02:30]} 14. Qxe2 {[%emt 0:00:30]} g6 {[%emt 0:00:30]} 15. b3 {[%emt 0:05:30]} Bg7 {[%emt 0:04:30]} 16. Bd2 {[%emt 0:00:30]} O-O {[%emt 0:01:30]} 17. Bd3 {[%emt 0:00:30]} Qd8 {[%emt 0:03:30]} 18. g3 {[%emt 0:00:30]} Nh5 {[%emt 0:01:30]} 19. Ng2 {[%emt 0:02:30]} Qe8 {[%emt 0:03:30]} 20. Rae1 {[%emt 0:00:30]} f5 {[%emt 0:01:30]} 21. Nh4 {[%emt 0:08:30]} f4 {[%emt 0:01:30]} 22. Qg4 {[%emt 0:01:30]} Kh7 {[%emt 0:01:30]} 23. Nxg6 {[%emt 0:15:30]} Qxg6 {[%emt 0:03:30]} 24. Qxd7 {[%emt 0:04:30]} fxg3 {[%emt 0:00:30]} 25. f4 {[%emt 0:00:30]} Rf7 {[%emt 0:04:30]} 26. f5 {[%emt 0:16:30]} Rxd7 {[%emt 0:06:30]} 27. fxg6+ {[%emt 0:00:00]} Kxg6 {[%emt 0:00:00]} 28. Be2 {[%emt 0:01:00]} Nf4 {[%emt 0:02:00]} 29. Bxf4 {[%emt 0:00:30]} exf4 {[%emt 0:00:30]} 30. Rxf4 {[%emt 0:00:00]} Bd4+ {[%emt 0:02:30]} 31. Kg2 {[%emt 0:03:00]} Bf2 {[%emt 0:00:30]} 32. Rd1 {[%emt 0:00:30]} Kg7 {[%emt 0:07:30]} 33. Bg4 {[%emt 0:01:30]} Rf7 {[%emt 0:00:30]} 34. Bf5 {[%emt 0:02:30]} h5 {[%emt 0:00:00]} 35. Rh4 {[%emt 0:01:30]} Rh8 {[%emt 0:00:00]} 36. Rd3 {[%emt 0:00:30]} Kh6 {[%emt 0:03:48]} 37. Rf4 {[%emt 0:00:30]} Kg5 {[%emt 0:02:05]} 38. Rdf3 {[%emt 0:01:30]} Rhf8 {[%emt 0:00:08]} 39. h4+ {[%emt 0:00:30]} Kh6 {[%emt 0:00:04]} 40. Rd3 {[%emt 0:04:07]} Re7 {[%emt 0:02:32]} 41. Rff3 {[%emt 0:01:09]} Re5 {[%emt 0:00:25]} 42. c4 {[%emt 0:00:25]} Rf7 {[%emt 0:04:02]} 43. Be6 {[%emt 0:02:35]} Rxf3 {[%emt 0:00:42]} 44. Kxf3 {[%emt 0:00:31]} Rxe4 {[%emt 0:02:58]} 45. Kxe4 {[%emt 0:01:04]} g2 {[%emt 0:00:04]} 46. Rd1 {[%emt 0:00:05]} Kg6 {[%emt 0:01:29]} 47. Bc8 {[%emt 0:04:32]} g1=Q {[%emt 0:00:12]} 48. Rxg1+ {[%emt 0:00:03]} Bxg1 {[%emt 0:00:02]} 49. Bxb7 {[%emt 0:06:33]} Bf2 {[%emt 0:00:09]} 50. Bxa6 {[%emt 0:00:15]} 1/2-1/2

[Event "Turkish Second League 2019"]
[Site "Konya"]
[Date "2019.07.24"]
[Round "4"]
[White "Abdulla, Khayala"]
[Black "Abdimanoglu, Beste Basak"]
[Result "1-0"]
[ECO "B09"]
[WhiteElo "2283"]
[BlackElo "1898"]
[Annotator "NA"]
[PlyCount "73"]
[EventDate "2019.07.22"]
[EventType "team-tourn"]
[EventCountry "TUR"]
[SourceTitle "playchess.com"]
[Source "ChessBase"]
[SourceQuality "1"]
[TimeControl "5400+30"]

1. e4 g6 2. d4 Bg7 3. Nc3 d6 4. f4 Nf6 5. Nf3 Nc6 6. d5 Nb8 7. Bd3 O-O 8. O-O Bg4 9. Qe1 Bxf3 10. Rxf3 c6 11. Be3 Ng4 12. Bd2 Nd7 13. Qh4 Ngf6 14. Rh3 e5 15. fxe5 dxe5 16. Rf1 h5 17. dxc6 bxc6 18. Bg5 Qb6+ 19. Kh1 Nh7 20. Be7 Qxb2 21. Bxf8 Rxf8 22. Qe7 Qxc3 23. Qxd7 Qc5 24. Rhf3 Ng5 25. R3f2 f6 26. h4 Nh7 27. Qe6+ Kh8 28. Rf3 Qb6 29. Rg3 c5 30. Qxb6 axb6 31. Rxg6 Ra8 32. Bc4 Ra4 33. Bd5 Ra3 34. Kh2 Rc3 35. Rb1 Nf8 36. Rg3 Rxg3 37. Kxg3 {[%emt 1:11:30]} 1-0

[Event "Turkish Second League 2019"]
[Site "Konya"]
[Date "2019.07.24"]
[Round "4"]
[White "Karaoglan, Doruk"]
[Black "Ozates, Tuna"]
[Result "1/2-1/2"]
[ECO "A00"]
[WhiteElo "2278"]
[BlackElo "2218"]
[Annotator "NA"]
[PlyCount "136"]
[EventDate "2019.07.22"]
[EventType "team-tourn"]
[EventCountry "TUR"]
[SourceTitle "playchess.com"]
[Source "ChessBase"]
[SourceQuality "1"]
[TimeControl "5400+30"]

1. g3 e5 2. Bg2 d5 3. c4 dxc4 4. Qa4+ Bd7 5. Qxc4 Bc6 6. Nf3 Bd6 7. d3 Nf6 8. Nc3 a6 9. O-O h6 10. d4 b5 11. Qb3 exd4 12. Nxd4 Bxg2 13. Kxg2 O-O 14. Nf5 Bc5 15. Bf4 Qd7 16. Qc2 Bb6 17. Rad1 Qe6 18. e4 Nbd7 19. f3 Rfe8 20. a3 Ne5 21. Nd5 Nxd5 22. Rxd5 Ng6 23. Bc1 Ne7 24. Nxe7+ Qxe7 25. Rfd1 Rad8 26. Bf4 Rxd5 27. Rxd5 Rd8 28. Qc6 Rxd5 29. Qxd5 Qf6 30. Be5 Qg5 31. f4 Qg4 32. Qd3 Qe6 33. Bc3 Qc6 34. Kh3 Qg6 35. g4 h5 36. g5 Qe6+ 37. f5 Qe7 38. Kh4 Qc5 39. g6 Qf2+ 40. Kh3 fxg6 41. fxg6 c6 42. Be5 Qc5 43. Qf3 Qe7 44. Qf5 Bd8 45. Qxh5 Qe6+ 46. Qf5 Qe7 47. Bg3 a5 48. e5 b4 49. axb4 axb4 50. e6 c5 51. Qf7+ Qxf7 52. gxf7+ Kf8 53. Kg4 c4 54. Be5 c3 55. Kf5 c2 56. Kg6 c1=Q 57. Bxg7+ Ke7 58. f8=Q+ Kxe6 59. Qxd8 Qc2+ 60. Kh5 Qe2+ 61. Kg5 Qg2+ 62. Kf4 Qxh2+ {[%emt 1:58:22]} 63. Ke3 {[%emt 1:59:56]} Qg1+ {[%emt 0:00:30]} 64. Ke4 {[%emt 0:00:30]} Qe1+ {[%emt 0:00:30]} 65. Kf4 {[%emt 0:00:30]} Qf2+ {[%emt 0:00:30]} 66. Kg5 {[%emt 0:00:30]} Qg2+ {[%emt 0:00:30]} 67. Kh6 {[%emt 0:00:30]} Qh2+ {[%emt 0:00:30]} 68. Kg6 {[%emt 0:00:26]} Qc2+ {[%emt 0:00:22]} 1/2-1/2

[Event "Turkish Second League 2019"]
[Site "Konya"]
[Date "2019.07.24"]
[Round "4"]
[White "Buyukasik, Diyap"]
[Black "Boz, Fatih Emre"]
[Result "1-0"]
[ECO "D15"]
[WhiteElo "2268"]
[BlackElo "1854"]
[Annotator "NA"]
[PlyCount "75"]
[EventDate "2019.07.22"]
[EventType "team-tourn"]
[EventCountry "TUR"]
[SourceTitle "playchess.com"]
[Source "ChessBase"]
[SourceQuality "1"]
[TimeControl "5400+30"]

1. d4 {[%emt 0:00:30]} d5 {[%emt 0:00:30]} 2. c4 {[%emt 0:02:30]} dxc4 {[%emt 0:00:00]} 3. Nf3 {[%emt 0:05:30]} Nf6 {[%emt 0:00:00]} 4. e3 {[%emt 0:01:30]} b5 {[%emt 0:09:30]} 5. a4 {[%emt 0:01:30]} c6 {[%emt 0:07:30]} 6. Nc3 {[%emt 0:13:30]} b4 {[%emt 0:04:30]} 7. Nb1 {[%emt 0:02:30]} a5 {[%emt 0:02:30]} 8. Bxc4 {[%emt 0:01:30]} e6 {[%emt 0:00:00]} 9. O-O {[%emt 0:00:30]} Ba6 {[%emt 0:00:00]} 10. Nbd2 {[%emt 0:06:30]} Be7 {[%emt 0:07:30]} 11. Ne5 {[%emt 0:01:30]} Qc7 {[%emt 0:07:30]} 12. Qc2 {[%emt 0:10:30]} Bxc4 {[%emt 0:07:30]} 13. Qxc4 {[%emt 0:01:30]} O-O {[%emt 0:04:30]} 14. Nb3 {[%emt 0:03:30]} Nfd7 {[%emt 0:08:30]} 15. Nd3 {[%emt 0:02:30]} Na6 {[%emt 0:07:30]} 16. e4 {[%emt 0:01:30]} e5 {[%emt 0:14:43]} 17. Be3 {[%emt 0:02:30]} Bd6 {[%emt 0:01:34]} 18. f4 {[%emt 0:04:30]} exd4 {[%emt 0:02:31]} 19. Nxd4 {[%emt 0:02:30]} Ndc5 {[%emt 0:01:40]} 20. e5 {[%emt 0:08:30]} Nxd3 {[%emt 0:05:40]} 21. exd6 {[%emt 0:07:26]} Qxd6 {[%emt 0:00:17]} 22. Qxd3 {[%emt 0:02:27]} c5 {[%emt 0:00:30]} 23. Rfd1 {[%emt 0:00:30]} cxd4 {[%emt 0:00:30]} 24. Qxd4 {[%emt 0:00:30]} Qe6 {[%emt 0:00:30]} 25. Bf2 {[%emt 0:00:30]} Rac8 {[%emt 0:00:30]} 26. Qd5 {[%emt 0:00:30]} Rc2 {[%emt 0:00:30]} 27. Qxe6 {[%emt 0:00:30]} fxe6 {[%emt 0:00:30]} 28. Rd6 {[%emt 0:00:30]} Nc7 {[%emt 0:00:30]} 29. Rd7 {[%emt 0:00:30]} Rxf4 {[%emt 0:00:30]} 30. Bg3 {[%emt 0:00:30]} Rfc4 {[%emt 0:00:30]} 31. Rf1 {[%emt 0:00:30]} h6 {[%emt 0:00:30]} 32. b3 {[%emt 0:00:30]} Rc5 {[%emt 0:00:30]} 33. Bd6 {[%emt 0:00:30]} Rc6 {[%emt 0:00:30]} 34. Rf8+ {[%emt 0:00:30]} Kh7 {[%emt 0:00:30]} 35. Be5 {[%emt 0:00:30]} Rc1+ {[%emt 0:00:30]} 36. Kf2 {[%emt 0:00:30]} R6c2+ {[%emt 0:00:30]} 37. Kg3 {[%emt 0:00:30]} Rc3+ {[%emt 0:00:30]} 38. Kh4 {[%emt 0:00:30]} 1-0

[Event "Turkish Second League 2019"]
[Site "Konya"]
[Date "2019.07.24"]
[Round "4"]
[White "Karaokcu, Erkin"]
[Black "Bashirli, Nail"]
[Result "1-0"]
[ECO "A13"]
[WhiteElo "2256"]
[BlackElo "2367"]
[Annotator "NA"]
[PlyCount "147"]
[EventDate "2019.07.22"]
[EventType "team-tourn"]
[EventCountry "TUR"]
[SourceTitle "playchess.com"]
[Source "ChessBase"]
[SourceQuality "1"]
[TimeControl "5400+30"]

1. Nf3 Nf6 2. c4 e6 3. g3 d5 4. Bg2 dxc4 5. O-O Nbd7 6. Qa4 a6 7. Qxc4 b5 8. Qc2 Bb7 9. d3 Bd6 10. Nbd2 O-O 11. b3 e5 12. Bb2 Re8 13. Rfe1 Bf8 14. Nxe5 Bxg2 15. Nxd7 Qxd7 16. Kxg2 Nd5 17. a3 Qg4 18. e3 Rad8 19. Nf3 Rd6 20. h3 Qh5 21. Qd2 Rh6 22. Ng1 Rd6 23. e4 Nb6 24. Rac1 c5 25. Qe3 Rd7 26. Nf3 f6 27. e5 Qg6 28. Rcd1 Nd5 29. Qc1 f5 30. e6 Rd6 31. Nh4 Qh5 32. Qxc5 f4 {[%emt 1:44:32]} 33. Be5 {[%emt 1:45:50]} fxg3 {[%emt 0:00:30]} 34. Bxd6 {[%emt 0:00:30]} gxf2 {[%emt 0:00:30]} 35. Qxf2 {[%emt 0:00:30]} Bxd6 {[%emt 0:00:30]} 36. Qf7+ {[%emt 0:00:30]} Qxf7 {[%emt 0:00:30]} 37. exf7+ {[%emt 0:00:30]} Kxf7 {[%emt 0:00:30]} 38. Rxe8 {[%emt 0:00:30]} Kxe8 {[%emt 0:00:30]} 39. Re1+ {[%emt 0:00:30]} Kd7 {[%emt 0:00:30]} 40. a4 {[%emt 0:00:30]} Nf4+ {[%emt 0:00:30]} 41. Kf3 {[%emt 0:00:30]} g6 {[%emt 0:00:30]} 42. axb5 {[%emt 0:00:30]} axb5 {[%emt 0:00:30]} 43. Ke4 {[%emt 0:00:30]} Nxh3 {[%emt 0:00:30]} 44. Nf3 {[%emt 0:00:30]} Bg3 {[%emt 0:00:30]} 45. Ra1 {[%emt 0:00:30]} Nf2+ {[%emt 0:00:30]} 46. Ke3 {[%emt 0:00:30]} Ng4+ {[%emt 0:00:30]} 47. Kd4 {[%emt 0:00:30]} Bf2+ {[%emt 0:00:30]} 48. Ke4 {[%emt 0:00:30]} Nf6+ {[%emt 0:00:30]} 49. Ke5 {[%emt 0:00:30]} Ng4+ {[%emt 0:00:30]} 50. Kf4 {[%emt 0:00:30]} Nf6 {[%emt 0:00:30]} 51. d4 {[%emt 0:00:30]} Nd5+ {[%emt 0:00:30]} 52. Ke5 {[%emt 0:00:30]} Nc7 {[%emt 0:00:30]} 53. Rf1 {[%emt 0:00:30]} Bg3+ {[%emt 0:00:30]} 54. Ke4 {[%emt 0:00:30]} Ne6 {[%emt 0:00:30]} 55. Ne5+ {[%emt 0:00:30]} Kd6 {[%emt 0:00:30]} 56. Nf7+ {[%emt 0:00:30]} Ke7 {[%emt 0:00:30]} 57. Ne5 {[%emt 0:00:30]} Kd6 {[%emt 0:00:30]} 58. Nf3 {[%emt 0:00:30]} h5 {[%emt 0:00:30]} 59. b4 {[%emt 0:00:30]} h4 {[%emt 0:00:30]} 60. Rh1 {[%emt 0:00:30]} g5 {[%emt 0:00:30]} 61. d5 {[%emt 0:00:30]} g4 {[%emt 0:00:30]} 62. Nxh4 {[%emt 0:00:30]} Ng5+ {[%emt 0:00:30]} 63. Kf5 {[%emt 0:00:30]} Nh3 {[%emt 0:00:30]} 64. Ng2 {[%emt 0:00:30]} Nf2 {[%emt 0:00:30]} 65. Rc1 {[%emt 0:00:30]} Nd3 {[%emt 0:00:30]} 66. Rc3 {[%emt 0:00:30]} Nxb4 {[%emt 0:00:30]} 67. Rxg3 {[%emt 0:00:30]} Nxd5 {[%emt 0:00:30]} 68. Rxg4 {[%emt 0:00:30]} b4 {[%emt 0:00:30]} 69. Rg7 {[%emt 0:00:30]} Kc5 {[%emt 0:00:30]} 70. Ke4 {[%emt 0:00:30]} b3 {[%emt 0:00:30]} 71. Rg5 {[%emt 0:00:13]} b2 {[%emt 0:01:17]} 72. Rxd5+ {[%emt 0:00:32]} Kb4 {[%emt 0:00:05]} 73. Rd1 {[%emt 0:00:00]} Kb3 {[%emt 0:01:03]} 74. Kd3 {[%emt 0:00:00]} 1-0

[Event "Turkish Second League 2019"]
[Site "Konya"]
[Date "2019.07.24"]
[Round "4"]
[White "Ozsakallioglu, Okan"]
[Black "Lomsadze, Davit"]
[Result "1/2-1/2"]
[ECO "C64"]
[WhiteElo "2243"]
[BlackElo "2292"]
[Annotator "NA"]
[PlyCount "108"]
[EventDate "2019.07.22"]
[EventType "team-tourn"]
[EventCountry "TUR"]
[SourceTitle "playchess.com"]
[Source "ChessBase"]
[SourceQuality "1"]
[TimeControl "5400+30"]

1. e4 {[%emt 0:00:30]} e5 {[%emt 0:00:30]} 2. Nf3 {[%emt 0:00:30]} Nc6 {[%emt 0:00:00]} 3. Bb5 {[%emt 0:00:30]} Bc5 {[%emt 0:00:00]} 4. O-O {[%emt 0:02:30]} Nd4 {[%emt 0:00:00]} 5. Nxd4 {[%emt 0:00:30]} Bxd4 {[%emt 0:00:00]} 6. c3 {[%emt 0:02:30]} Bb6 {[%emt 0:00:30]} 7. Qg4 {[%emt 0:00:00]} Qf6 {[%emt 0:02:30]} 8. d4 {[%emt 0:02:00]} exd4 {[%emt 0:12:30]} 9. cxd4 {[%emt 0:09:30]} c6 {[%emt 0:03:30]} 10. Ba4 {[%emt 0:02:30]} d6 {[%emt 0:04:30]} 11. Qg3 {[%emt 0:00:30]} Bxd4 {[%emt 0:02:30]} 12. Nc3 {[%emt 0:00:00]} Ne7 {[%emt 0:07:30]} 13. Bg5 {[%emt 0:05:00]} Qg6 {[%emt 0:05:30]} 14. Rad1 {[%emt 0:01:30]} Bxc3 {[%emt 0:03:30]} 15. bxc3 {[%emt 0:03:30]} h6 {[%emt 0:02:30]} 16. Bf4 {[%emt 0:03:30]} Qxg3 {[%emt 0:00:30]} 17. Bxg3 {[%emt 0:00:30]} Be6 {[%emt 0:00:30]} 18. Bb3 {[%emt 0:00:30]} d5 {[%emt 0:01:30]} 19. exd5 {[%emt 0:03:30]} cxd5 {[%emt 0:01:30]} 20. Ba4+ {[%emt 0:00:30]} Bd7 {[%emt 0:01:30]} 21. Bb3 {[%emt 0:02:30]} O-O-O {[%emt 0:07:30]} 22. c4 {[%emt 0:00:30]} Bc6 {[%emt 0:03:30]} 23. cxd5 {[%emt 0:00:30]} Nxd5 {[%emt 0:00:30]} 24. Rc1 {[%emt 0:00:30]} Rhe8 {[%emt 0:00:30]} 25. Rfd1 {[%emt 0:00:30]} Nc3 {[%emt 0:03:30]} 26. Rxd8+ {[%emt 0:00:00]} Kxd8 {[%emt 0:00:00]} 27. Bc4 {[%emt 0:04:00]} Ne2+ {[%emt 0:01:00]} 28. Bxe2 {[%emt 0:00:30]} Rxe2 {[%emt 0:00:00]} 29. a3 {[%emt 0:00:30]} Ke7 {[%emt 0:01:00]} 30. h3 {[%emt 0:00:00]} Rd2 {[%emt 0:02:30]} 31. Bb8 {[%emt 0:00:00]} a6 {[%emt 0:00:30]} 32. Rc3 {[%emt 0:00:30]} h5 {[%emt 0:00:30]} 33. Ba7 {[%emt 0:01:30]} g6 {[%emt 0:01:30]} 34. Kh2 {[%emt 0:00:30]} Ke6 {[%emt 0:00:00]} 35. Kg3 {[%emt 0:00:30]} Kd5 {[%emt 0:01:00]} 36. Be3 {[%emt 0:00:30]} Rd1 {[%emt 0:00:30]} 37. Kf4 {[%emt 0:02:30]} Rh1 {[%emt 0:01:30]} 38. Kg3 {[%emt 0:03:30]} Rg1 {[%emt 0:00:30]} 39. f3 {[%emt 0:00:30]} Rd1 {[%emt 0:00:30]} 40. h4 {[%emt 0:00:30]} Ra1 {[%emt 0:02:30]} 41. Kf4 {[%emt 0:00:30]} Ke6 {[%emt 0:04:30]} 42. Ba7 {[%emt 0:01:30]} Ra2 {[%emt 0:02:30]} 43. g4 {[%emt 0:01:30]} Ra1 {[%emt 0:01:30]} 44. Re3+ {[%emt 0:00:30]} Kd5 {[%emt 0:01:30]} 45. gxh5 {[%emt 0:00:00]} gxh5 {[%emt 0:00:30]} 46. Kg5 {[%emt 0:00:00]} Rg1+ {[%emt 0:01:30]} 47. Kxh5 {[%emt 0:01:30]} Rg3 {[%emt 0:01:30]} 48. Kh6 {[%emt 0:03:30]} Kc4 {[%emt 0:02:05]} 49. f4 {[%emt 0:01:30]} Rxe3 {[%emt 0:08:42]} 50. Bxe3 {[%emt 0:00:30]} Kd3 {[%emt 0:00:09]} 51. Bc5 {[%emt 0:00:30]} Ke4 {[%emt 0:02:33]} 52. Bd6 {[%emt 0:00:30]} Kf5 {[%emt 0:00:30]} 53. Kg7 {[%emt 0:00:30]} Bf3 {[%emt 0:00:30]} 54. Kxf7 {[%emt 0:00:30]} b5 {[%emt 0:00:30]} 1/2-1/2

[Event "Turkish Second League 2019"]
[Site "Konya"]
[Date "2019.07.24"]
[Round "4"]
[White "Ozenir, Ekin Baris"]
[Black "Erdogan, Yunus Emre"]
[Result "*"]
[ECO "A52"]
[WhiteElo "2235"]
[BlackElo "1833"]
[Annotator "NA"]
[PlyCount "47"]
[EventDate "2019.07.22"]
[EventType "team-tourn"]
[EventCountry "TUR"]
[SourceTitle "playchess.com"]
[Source "ChessBase"]
[SourceQuality "1"]
[TimeControl "5400+30"]

1. d4 {[%emt 0:00:30]} Nf6 {[%emt 0:00:30]} 2. c4 {[%emt 0:00:30]} e5 {[%emt 0:01:30]} 3. dxe5 {[%emt 0:00:30]} Ng4 {[%emt 0:00:30]} 4. Bf4 {[%emt 0:00:30]} g5 {[%emt 0:01:30]} 5. Bg3 {[%emt 0:00:30]} Bg7 {[%emt 0:00:00]} 6. Nf3 {[%emt 0:01:30]} Nc6 {[%emt 0:01:00]} 7. h4 {[%emt 0:04:30]} Ngxe5 {[%emt 0:04:30]} 8. Nxe5 {[%emt 0:00:30]} Nxe5 {[%emt 0:00:00]} 9. Nc3 {[%emt 0:00:30]} Nxc4 {[%emt 0:19:00]} 10. e4 {[%emt 0:08:30]} Ne5 {[%emt 0:00:30]} 11. hxg5 {[%emt 0:00:00]} c6 {[%emt 0:13:30]} 12. f4 {[%emt 0:13:00]} Ng6 {[%emt 0:00:30]} 13. Qd2 {[%emt 0:08:30]} h6 {[%emt 0:09:30]} 14. gxh6 {[%emt 0:05:30]} Rxh6 {[%emt 0:04:30]} 15. Rg1 {[%emt 0:06:30]} Qb6 {[%emt 0:07:30]} 16. Bf2 {[%emt 0:06:30]} Qb4 {[%emt 0:02:30]} 17. Be3 {[%emt 0:04:30]} Rh2 {[%emt 0:07:30]} 18. O-O-O {[%emt 0:07:30]} Bxc3 {[%emt 0:11:40]} 19. Qxc3 {[%emt 0:00:30]} Qxc3+ {[%emt 0:01:20]} 20. bxc3 {[%emt 0:00:30]} d5 {[%emt 0:00:30]} 21. exd5 {[%emt 0:00:30]} cxd5 {[%emt 0:00:30]} 22. Rxd5 {[%emt 0:00:30]} Be6 {[%emt 0:00:30]} 23. Rb5 {[%emt 0:00:30]} Bxa2 {[%emt 0:00:30]} 24. Kb2 {[%emt 0:00:30]} *

[Event "Turkish Second League 2019"]
[Site "Konya"]
[Date "2019.07.24"]
[Round "4"]
[White "Topak, Engin"]
[Black "Metin, Mehmet"]
[Result "1/2-1/2"]
[ECO "D35"]
[WhiteElo "2206"]
[BlackElo "2150"]
[Annotator "NA"]
[PlyCount "69"]
[EventDate "2019.07.22"]
[EventType "team-tourn"]
[EventCountry "TUR"]
[SourceTitle "playchess.com"]
[Source "ChessBase"]
[SourceQuality "1"]
[TimeControl "5400+30"]

1. d4 {[%emt 0:01:30]} Nf6 {[%emt 0:01:30]} 2. Nf3 {[%emt 0:00:30]} d5 {[%emt 0:00:30]} 3. c4 {[%emt 0:00:30]} e6 {[%emt 0:01:30]} 4. Nc3 {[%emt 0:00:30]} Be7 {[%emt 0:00:30]} 5. Bg5 {[%emt 0:00:30]} O-O {[%emt 0:00:30]} 6. e3 {[%emt 0:00:00]} Nbd7 {[%emt 0:01:30]} 7. Rc1 {[%emt 0:01:00]} c6 {[%emt 0:00:30]} 8. cxd5 {[%emt 0:00:30]} exd5 {[%emt 0:00:30]} 9. Bd3 {[%emt 0:00:30]} Re8 {[%emt 0:03:30]} 10. O-O {[%emt 0:01:30]} Ne4 {[%emt 0:01:30]} 11. Bxe7 {[%emt 0:16:30]} Qxe7 {[%emt 0:02:30]} 12. Qc2 {[%emt 0:07:30]} Nxc3 {[%emt 0:11:30]} 13. bxc3 {[%emt 0:01:30]} g6 {[%emt 0:02:30]} 14. c4 {[%emt 0:01:30]} dxc4 {[%emt 0:01:30]} 15. Bxc4 {[%emt 0:00:30]} Nb6 {[%emt 0:00:00]} 16. Bb3 {[%emt 0:00:30]} Be6 {[%emt 0:02:00]} 17. Ne5 {[%emt 0:01:30]} Kg7 {[%emt 0:03:30]} 18. Bxe6 {[%emt 0:01:30]} Qxe6 {[%emt 0:00:30]} 19. Rb1 {[%emt 0:00:30]} Re7 {[%emt 0:01:30]} 20. Rb3 {[%emt 0:08:30]} Nc8 {[%emt 0:07:30]} 21. Rfb1 {[%emt 0:09:30]} Nd6 {[%emt 0:01:30]} 22. Nd3 {[%emt 0:01:30]} Qd5 {[%emt 0:05:30]} 23. h3 {[%emt 0:07:30]} Rd8 {[%emt 0:04:30]} 24. Nc5 {[%emt 0:10:30]} b6 {[%emt 0:07:30]} 25. Nd3 {[%emt 0:03:30]} Qe4 {[%emt 0:06:30]} 26. Rc1 {[%emt 0:01:30]} Rc8 {[%emt 0:06:30]} 27. a4 {[%emt 0:02:54]} Nb7 {[%emt 0:02:30]} 28. Rc3 {[%emt 0:01:37]} Rec7 {[%emt 0:05:29]} 29. Nb4 {[%emt 0:08:11]} Qxc2 {[%emt 0:00:30]} 30. R1xc2 {[%emt 0:00:30]} c5 {[%emt 0:00:30]} 31. Na6 {[%emt 0:00:30]} Rc6 {[%emt 0:00:30]} 32. Nb4 {[%emt 0:00:30]} Rd6 {[%emt 0:00:30]} 33. Na6 {[%emt 0:00:30]} Rdc6 {[%emt 0:00:30]} 34. Nb4 {[%emt 0:00:30]} Rd6 {[%emt 0:00:30]} 35. Na6 {[%emt 0:00:30]} 1/2-1/2

[Event "Turkish Second League 2019"]
[Site "Konya"]
[Date "2019.07.24"]
[Round "4"]
[White "Ibrahimova, Sabina"]
[Black "Guney, Gamze Nur"]
[Result "1-0"]
[ECO "C67"]
[WhiteElo "2190"]
[BlackElo "1735"]
[Annotator "NA"]
[PlyCount "55"]
[EventDate "2019.07.22"]
[EventType "team-tourn"]
[EventCountry "TUR"]
[SourceTitle "playchess.com"]
[Source "ChessBase"]
[SourceQuality "1"]
[TimeControl "5400+30"]

1. e4 {[%emt 0:00:30]} e5 {[%emt 0:00:30]} 2. Nf3 {[%emt 0:00:00]} Nc6 {[%emt 0:00:00]} 3. Bb5 {[%emt 0:00:00]} Nf6 {[%emt 0:00:00]} 4. d4 {[%emt 0:02:30]} Nxe4 {[%emt 0:02:30]} 5. O-O {[%emt 0:00:30]} Nd6 {[%emt 0:00:00]} 6. Bxc6 {[%emt 0:04:30]} dxc6 {[%emt 0:00:00]} 7. dxe5 {[%emt 0:03:30]} Nf5 {[%emt 0:00:30]} 8. Qe2 {[%emt 0:01:30]} Nd4 {[%emt 0:17:30]} 9. Nxd4 {[%emt 0:06:30]} Qxd4 {[%emt 0:05:30]} 10. Rd1 {[%emt 0:24:30]} Bg4 {[%emt 0:16:30]} 11. Rxd4 {[%emt 0:00:30]} Bxe2 {[%emt 0:00:00]} 12. Nc3 {[%emt 0:01:30]} Bh5 {[%emt 0:03:00]} 13. Bf4 {[%emt 0:09:30]} Rd8 {[%emt 0:10:30]} 14. Re4 {[%emt 0:06:30]} Bg6 {[%emt 0:15:30]} 15. Re2 {[%emt 0:00:30]} Bb4 {[%emt 0:05:30]} 16. Bg5 {[%emt 0:07:30]} Rd7 {[%emt 0:02:55]} 17. g4 {[%emt 0:01:30]} h5 {[%emt 0:03:21]} 18. h3 {[%emt 0:00:30]} hxg4 {[%emt 0:00:42]} 19. hxg4 {[%emt 0:00:30]} Bxc3 {[%emt 0:00:00]} 20. bxc3 {[%emt 0:00:30]} Rh3 {[%emt 0:03:01]} 21. Kg2 {[%emt 0:04:30]} Rxc3 {[%emt 0:07:39]} 22. Rh1 {[%emt 0:00:00]} Rd5 {[%emt 0:00:25]} 23. Rh8+ {[%emt 0:01:00]} Kd7 {[%emt 0:00:01]} 24. e6+ {[%emt 0:00:00]} Kd6 {[%emt 0:00:56]} 25. Bf6 {[%emt 0:04:00]} Rxc2 {[%emt 0:00:30]} 26. Rd8+ {[%emt 0:00:30]} Kc5 {[%emt 0:00:30]} 27. Rxc2+ {[%emt 0:00:30]} Bxc2 {[%emt 0:00:30]} 28. e7 {[%emt 0:00:30]} 1-0